[Event "Titled Tuesday Blitz May 2 Early 2023"]
[White "Ng, Gary"]
[Black "Pujari, Rucha"]
[WhiteFideId "2604914"]
[BlackFideId "5024528"]
[WhiteElo "2213"]
[BlackElo "2129"]
[Result "0-1"]
[Round "09"]
[TimeControl "180+2"]
[Date "2023.05.02"]
[WhiteClock "0:00:02"]
[BlackClock "0:00:14"]

1. d4 {[%clk 0:03:00]}  d5 {[%clk 0:02:58]} 2. Bf4 {[%clk 0:03:01]}  Nf6 {[%clk 0:02:58]} 3. e3 {[%clk 0:03:02]}  e6 {[%clk 0:02:59]} 4. Nd2 {[%clk 0:03:00]}  Bd6 {[%clk 0:02:59]} 5. Bg3 {[%clk 0:03:00]}  O-O {[%clk 0:02:59]} 6. Bd3 {[%clk 0:03:00]}  c5 {[%clk 0:02:55]} 7. c3 {[%clk 0:03:00]}  Qc7 {[%clk 0:02:53]} 8. Ngf3 {[%clk 0:02:59]}  Nbd7 {[%clk 0:02:52]} 9. dxc5 {[%clk 0:02:36]}  Nxc5 {[%clk 0:02:48]} 10. Bc2 {[%clk 0:02:35]}  b6 {[%clk 0:02:34]} 11. O-O {[%clk 0:02:28]}  Ba6 {[%clk 0:02:30]} 12. Re1 {[%clk 0:02:26]}  Nd3 {[%clk 0:02:30]} 13. Bxd3 {[%clk 0:02:21]}  Bxd3 {[%clk 0:02:31]} 14. Nb3 {[%clk 0:02:15]}  Bxg3 {[%clk 0:02:25]} 15. Qxd3 {[%clk 0:02:05]}  Bd6 {[%clk 0:02:24]} 16. Nbd4 {[%clk 0:01:53]}  a6 {[%clk 0:02:19]} 17. h3 {[%clk 0:01:42]}  Ne4 {[%clk 0:02:18]} 18. Nd2 {[%clk 0:01:35]}  Bh2+ {[%clk 0:01:52]} 19. Kf1 {[%clk 0:01:31]}  Nc5 {[%clk 0:01:47]} 20. Qe2 {[%clk 0:01:25]}  e5 {[%clk 0:01:40]} 21. Nf5 {[%clk 0:00:52]}  e4 {[%clk 0:01:39]} 22. Qg4 {[%clk 0:00:49]}  g6 {[%clk 0:01:29]} 23. g3 {[%clk 0:00:45]}  h5 {[%clk 0:01:02]} 24. Qg5 {[%clk 0:00:22]}  Rae8 {[%clk 0:00:46]} 25. Kg2 {[%clk 0:00:14]}  Re5 {[%clk 0:00:45]} 26. Nh6+ {[%clk 0:00:13]}  Kg7 {[%clk 0:00:39]} 27. Qf4 {[%clk 0:00:09]}  Nd3 {[%clk 0:00:33]} 28. Nf5+ {[%clk 0:00:04]}  Kg8 {[%clk 0:00:18]} 29. Nh6+ {[%clk 0:00:03]}  Kh7 {[%clk 0:00:17]} 30. Qf6 {[%clk 0:00:02]}  Kxh6 {[%clk 0:00:15]} 31. Kxh2 {[%clk 0:00:02]}  Rf5 {[%clk 0:00:15]} 32. Qd4 {[%clk 0:00:01]}  Rxf2+ {[%clk 0:00:14]} 33. Kg1 {[%clk 0:00:02]}  Qxg3+ {[%clk 0:00:14]} 0-1


[Site "https://www.chess.com"]

[Event "Titled Tuesday Blitz May 2 Early 2023"]
[White "De Souza, Cristiano Gomes"]
[Black "Shvedova, Alexandra"]
[WhiteFideId "2151758"]
[BlackFideId "54154782"]
[WhiteElo "2068"]
[BlackElo "2057"]
[Result "0-1"]
[Round "09"]
[TimeControl "180+2"]
[Date "2023.05.02"]
[WhiteClock "0:00:01"]
[BlackClock "0:00:06"]

1. d4 {[%clk 0:03:00]}  Nf6 {[%clk 0:02:59]} 2. c4 {[%clk 0:02:49]}  e6 {[%clk 0:02:58]} 3. Nf3 {[%clk 0:02:34]}  d5 {[%clk 0:02:58]} 4. Nc3 {[%clk 0:02:27]}  dxc4 {[%clk 0:02:58]} 5. Bg5 {[%clk 0:02:27]}  a6 {[%clk 0:02:55]} 6. a4 {[%clk 0:02:26]}  Nc6 {[%clk 0:02:55]} 7. e4 {[%clk 0:02:26]}  Na5 {[%clk 0:02:52]} 8. e5 {[%clk 0:02:23]}  h6 {[%clk 0:02:52]} 9. Bh4 {[%clk 0:02:22]}  g5 {[%clk 0:02:52]} 10. exf6 {[%clk 0:02:22]}  gxh4 {[%clk 0:02:51]} 11. Ne5 {[%clk 0:02:23]}  Qxf6 {[%clk 0:02:27]} 12. Nxc4 {[%clk 0:02:21]}  Nxc4 {[%clk 0:02:26]} 13. Bxc4 {[%clk 0:02:21]}  Rg8 {[%clk 0:02:21]} 14. O-O {[%clk 0:02:18]}  Bd7 {[%clk 0:02:11]} 15. d5 {[%clk 0:02:16]}  O-O-O {[%clk 0:02:09]} 16. Qe2 {[%clk 0:02:10]}  Bb4 {[%clk 0:01:54]} 17. Ne4 {[%clk 0:02:00]}  Qg6 {[%clk 0:01:45]} 18. g3 {[%clk 0:01:36]}  exd5 {[%clk 0:01:40]} 19. Bxd5 {[%clk 0:01:34]}  Bh3 {[%clk 0:01:31]} 20. Rfc1 {[%clk 0:01:33]}  Rxd5 {[%clk 0:01:24]} 21. Qc4 {[%clk 0:01:32]}  Rd7 {[%clk 0:01:09]} 22. Qxb4 {[%clk 0:01:30]}  Qg4 {[%clk 0:00:43]} 23. Rc3 {[%clk 0:01:02]}  Kb8 {[%clk 0:00:37]} 24. f3 {[%clk 0:00:36]}  Qf5 {[%clk 0:00:31]} 25. Rac1 {[%clk 0:00:21]}  hxg3 {[%clk 0:00:29]} 26. hxg3 {[%clk 0:00:20]}  Rgd8 {[%clk 0:00:28]} 27. Kf2 {[%clk 0:00:18]}  Qd5 {[%clk 0:00:20]} 28. R1c2 {[%clk 0:00:17]}  f5 {[%clk 0:00:19]} 29. Nc5 {[%clk 0:00:15]}  Qd4+ {[%clk 0:00:16]} 30. Qxd4 {[%clk 0:00:13]}  Rxd4 {[%clk 0:00:17]} 31. Re2 {[%clk 0:00:12]}  Rd1 {[%clk 0:00:14]} 32. Ne6 {[%clk 0:00:11]}  Re8 {[%clk 0:00:10]} 33. g4 {[%clk 0:00:05]}  fxg4 {[%clk 0:00:08]} 34. Kg3 {[%clk 0:00:04]}  gxf3 {[%clk 0:00:08]} 35. Ree3 {[%clk 0:00:01]}  Bxe6 {[%clk 0:00:08]} 36. Kxf3 {[%clk 0:00:01]}  Rf1+ {[%clk 0:00:08]} 37. Ke2 {[%clk 0:00:01]}  Rff8 {[%clk 0:00:06]} 0-1


[Site "https://www.chess.com"]

[Event "Titled Tuesday Blitz May 2 Early 2023"]
[White "Shuvalov, Evgenij"]
[Black "Singh, Arvinder Preet"]
[WhiteFideId "4187237"]
[BlackFideId "5013240"]
[WhiteElo "2080"]
[BlackElo "2124"]
[Result "0-1"]
[Round "09"]
[TimeControl "180+2"]
[Date "2023.05.02"]
[WhiteClock "0:00:20"]
[BlackClock "0:01:02"]

1. Nf3 {[%clk 0:03:00]}  g6 {[%clk 0:02:59]} 2. c4 {[%clk 0:03:00]}  Bg7 {[%clk 0:02:59]} 3. d4 {[%clk 0:03:01]}  f5 {[%clk 0:03:00]} 4. Nc3 {[%clk 0:03:00]}  Nf6 {[%clk 0:03:00]} 5. g3 {[%clk 0:03:01]}  O-O {[%clk 0:03:00]} 6. Bg2 {[%clk 0:03:01]}  c6 {[%clk 0:03:01]} 7. O-O {[%clk 0:03:00]}  d6 {[%clk 0:03:01]} 8. b3 {[%clk 0:02:59]}  Na6 {[%clk 0:02:59]} 9. Bb2 {[%clk 0:02:59]}  Qc7 {[%clk 0:02:58]} 10. Qc2 {[%clk 0:02:58]}  e5 {[%clk 0:02:53]} 11. dxe5 {[%clk 0:02:58]}  dxe5 {[%clk 0:02:53]} 12. e4 {[%clk 0:02:59]}  Nb4 {[%clk 0:02:52]} 13. Qe2 {[%clk 0:02:55]}  fxe4 {[%clk 0:02:52]} 14. Ng5 {[%clk 0:02:44]}  Bg4 {[%clk 0:02:47]} 15. f3 {[%clk 0:01:55]}  exf3 {[%clk 0:02:47]} 16. Bxf3 {[%clk 0:01:56]}  Bxf3 {[%clk 0:02:47]} 17. Qxf3 {[%clk 0:01:53]}  e4 {[%clk 0:02:43]} 18. Ngxe4 {[%clk 0:01:32]}  Nxe4 {[%clk 0:02:29]} 19. Qxe4 {[%clk 0:01:33]}  Rfe8 {[%clk 0:02:25]} 20. Qg2 {[%clk 0:01:28]}  Nd3 {[%clk 0:02:23]} 21. Rad1 {[%clk 0:01:21]}  Nxb2 {[%clk 0:02:21]} 22. Qxb2 {[%clk 0:01:22]}  Re3 {[%clk 0:02:14]} 23. Rc1 {[%clk 0:01:12]}  Qe5 {[%clk 0:02:14]} 24. Qf2 {[%clk 0:01:04]}  Rf8 {[%clk 0:02:08]} 25. Qd2 {[%clk 0:00:54]}  Rxc3 {[%clk 0:01:06]} 26. Rxf8+ {[%clk 0:00:50]}  Kxf8 {[%clk 0:01:07]} 27. Rf1+ {[%clk 0:00:36]}  Bf6 {[%clk 0:01:07]} 28. Qh6+ {[%clk 0:00:30]}  Kg8 {[%clk 0:01:04]} 29. Qh3 {[%clk 0:00:20]}  Qe3+ {[%clk 0:01:02]} 30. Kh1 {[%clk 0:00:20]}  Qe4+ {[%clk 0:01:02]} 31. Qg2 {[%clk 0:00:21]}  Qxg2+ {[%clk 0:01:01]} 32. Kxg2 {[%clk 0:00:22]}  Rc2+ {[%clk 0:01:01]} 33. Rf2 {[%clk 0:00:22]}  Rxf2+ {[%clk 0:01:00]} 34. Kxf2 {[%clk 0:00:23]}  Bd4+ {[%clk 0:01:01]} 35. Kf3 {[%clk 0:00:22]}  Kf7 {[%clk 0:01:01]} 36. Ke4 {[%clk 0:00:23]}  c5 {[%clk 0:01:02]} 37. h3 {[%clk 0:00:22]}  Ke6 {[%clk 0:01:02]} 38. g4 {[%clk 0:00:22]}  g5 {[%clk 0:01:02]} 39. Kf3 {[%clk 0:00:20]}  Ke5 {[%clk 0:01:02]} 40. Ke2 {[%clk 0:00:20]}  Ke4 {[%clk 0:01:02]} 0-1


[Site "https://www.chess.com"]

[Event "Titled Tuesday Blitz May 2 Early 2023"]
[White "Delorme, Alban"]
[Black "Srebrnic, Marko"]
[WhiteFideId "623636"]
[BlackFideId "14603616"]
[WhiteElo "2196"]
[BlackElo "2341"]
[Result "0-1"]
[Round "09"]
[TimeControl "180+2"]
[Date "2023.05.02"]
[WhiteClock "0:00:01"]
[BlackClock "0:00:24"]

1. e4 {[%clk 0:03:00]}  c5 {[%clk 0:02:59]} 2. Nf3 {[%clk 0:03:00]}  Nc6 {[%clk 0:02:58]} 3. d4 {[%clk 0:03:00]}  cxd4 {[%clk 0:02:59]} 4. Nxd4 {[%clk 0:03:01]}  e5 {[%clk 0:02:59]} 5. Nb5 {[%clk 0:03:01]}  d6 {[%clk 0:02:58]} 6. c4 {[%clk 0:03:01]}  Be7 {[%clk 0:02:57]} 7. Bd3 {[%clk 0:02:54]}  Be6 {[%clk 0:02:53]} 8. O-O {[%clk 0:02:52]}  Rc8 {[%clk 0:02:51]} 9. Be3 {[%clk 0:02:47]}  a6 {[%clk 0:02:50]} 10. N5c3 {[%clk 0:02:48]}  Bg5 {[%clk 0:02:50]} 11. Qe2 {[%clk 0:02:17]}  Bxe3 {[%clk 0:02:49]} 12. Qxe3 {[%clk 0:02:18]}  Nge7 {[%clk 0:02:44]} 13. Nd2 {[%clk 0:02:15]}  O-O {[%clk 0:02:43]} 14. Nd5 {[%clk 0:02:15]}  Nd4 {[%clk 0:02:42]} 15. Rac1 {[%clk 0:02:11]}  f5 {[%clk 0:02:37]} 16. Nf3 {[%clk 0:02:01]}  Nxf3+ {[%clk 0:02:27]} 17. Qxf3 {[%clk 0:01:58]}  Bxd5 {[%clk 0:02:27]} 18. cxd5 {[%clk 0:01:51]}  f4 {[%clk 0:02:14]} 19. Qg4 {[%clk 0:01:44]}  Rf6 {[%clk 0:02:00]} 20. Bc4 {[%clk 0:01:19]}  b5 {[%clk 0:01:46]} 21. Bb3 {[%clk 0:01:17]}  a5 {[%clk 0:01:39]} 22. a4 {[%clk 0:01:13]}  b4 {[%clk 0:01:36]} 23. Bc4 {[%clk 0:01:14]}  Rg6 {[%clk 0:01:32]} 24. Qh3 {[%clk 0:01:12]}  Rc5 {[%clk 0:01:25]} 25. Bb5 {[%clk 0:01:05]}  Qc7 {[%clk 0:01:25]} 26. Rxc5 {[%clk 0:01:00]}  dxc5 {[%clk 0:01:08]} 27. b3 {[%clk 0:00:48]}  Nc8 {[%clk 0:01:03]} 28. Bd7 {[%clk 0:00:37]}  Nd6 {[%clk 0:00:59]} 29. Be6+ {[%clk 0:00:30]}  Kh8 {[%clk 0:00:59]} 30. Rc1 {[%clk 0:00:28]}  c4 {[%clk 0:00:56]} 31. bxc4 {[%clk 0:00:26]}  Qc5 {[%clk 0:00:55]} 32. Qh4 {[%clk 0:00:20]}  Rf6 {[%clk 0:00:54]} 33. Qg5 {[%clk 0:00:18]}  f3 {[%clk 0:00:47]} 34. g3 {[%clk 0:00:16]}  Nxe4 {[%clk 0:00:43]} 35. Qe3 {[%clk 0:00:11]}  Qxe3 {[%clk 0:00:36]} 36. fxe3 {[%clk 0:00:12]}  f2+ {[%clk 0:00:37]} 37. Kg2 {[%clk 0:00:10]}  b3 {[%clk 0:00:38]} 38. c5 {[%clk 0:00:09]}  Nxc5 {[%clk 0:00:37]} 39. d6 {[%clk 0:00:04]}  f1=Q+ {[%clk 0:00:27]} 40. Rxf1 {[%clk 0:00:04]}  Rxf1 {[%clk 0:00:28]} 41. d7 {[%clk 0:00:02]}  Nxe6 {[%clk 0:00:28]} 42. Kxf1 {[%clk 0:00:01]}  b2 {[%clk 0:00:28]} 43. d8=Q+ {[%clk 0:00:01]}  Nxd8 {[%clk 0:00:28]} 44. Kg2 {[%clk 0:00:01]}  b1=Q {[%clk 0:00:27]} 45. Kf3 {[%clk 0:00:02]}  Qc2 {[%clk 0:00:27]} 46. e4 {[%clk 0:00:01]}  Ne6 {[%clk 0:00:26]} 47. Kg4 {[%clk 0:00:01]}  Qf2 {[%clk 0:00:25]} 48. Kh3 {[%clk 0:00:01]}  h5 {[%clk 0:00:24]} 49. Kh4 {[%clk 0:00:01]}  Qxh2# {[%clk 0:00:24]} 0-1


[Site "https://www.chess.com"]

[Event "Titled Tuesday Blitz May 2 Early 2023"]
[White "Lopez Gracia, Fernando"]
[Black "Mirzoev, Azer"]
[WhiteFideId "2207184"]
[BlackFideId "13400304"]
[WhiteElo "2255"]
[BlackElo "2525"]
[Result "0-1"]
[Round "09"]
[TimeControl "180+2"]
[Date "2023.05.02"]
[WhiteClock "0:01:42"]
[BlackClock "0:00:39"]

1. c4 {[%clk 0:02:53]}  c5 {[%clk 0:03:00]} 2. Nf3 {[%clk 0:02:53]}  Nc6 {[%clk 0:03:00]} 3. d4 {[%clk 0:02:52]}  g6 {[%clk 0:03:01]} 4. e4 {[%clk 0:02:52]}  Bg7 {[%clk 0:03:00]} 5. Be3 {[%clk 0:02:51]}  Qb6 {[%clk 0:02:59]} 6. Nc3 {[%clk 0:02:41]}  cxd4 {[%clk 0:02:57]} 7. Nd5 {[%clk 0:02:41]}  Qa5+ {[%clk 0:02:56]} 8. b4 {[%clk 0:02:32]}  Qd8 {[%clk 0:02:31]} 9. Nxd4 {[%clk 0:02:31]}  e6 {[%clk 0:02:24]} 10. Nc3 {[%clk 0:02:26]}  Nxb4 {[%clk 0:02:10]} 11. Qb3 {[%clk 0:02:21]}  Nc6 {[%clk 0:02:08]} 12. Ndb5 {[%clk 0:02:22]}  Nf6 {[%clk 0:01:50]} 13. Nd6+ {[%clk 0:02:20]}  Kf8 {[%clk 0:01:49]} 14. e5 {[%clk 0:02:20]}  Nxe5 {[%clk 0:01:45]} 15. O-O-O {[%clk 0:02:18]}  Kg8 {[%clk 0:01:42]} 16. h3 {[%clk 0:02:17]}  Ne8 {[%clk 0:01:35]} 17. Ncb5 {[%clk 0:02:15]}  Nxd6 {[%clk 0:01:26]} 18. Nxd6 {[%clk 0:02:16]}  Nc6 {[%clk 0:01:19]} 19. Bc5 {[%clk 0:02:12]}  b6 {[%clk 0:01:14]} 20. Qf3 {[%clk 0:02:12]}  Qf6 {[%clk 0:01:05]} 21. Be3 {[%clk 0:01:54]}  Qxf3 {[%clk 0:01:03]} 22. gxf3 {[%clk 0:01:55]}  Ba6 {[%clk 0:01:02]} 23. c5 {[%clk 0:01:52]}  Bxf1 {[%clk 0:00:56]} 24. Rhxf1 {[%clk 0:01:53]}  bxc5 {[%clk 0:00:53]} 25. Bxc5 {[%clk 0:01:53]}  Be5 {[%clk 0:00:46]} 26. Nc4 {[%clk 0:01:49]}  Bf4+ {[%clk 0:00:40]} 27. Be3 {[%clk 0:01:44]}  Bxe3+ {[%clk 0:00:38]} 28. fxe3 {[%clk 0:01:42]}  d5 {[%clk 0:00:39]} 29. Nb2 {[%clk 0:01:42]}  Kg7 {[%clk 0:00:39]} 0-1


[Site "https://www.chess.com"]

[Event "Titled Tuesday Blitz May 2 Early 2023"]
[White "Liu, Casper"]
[Black "Aldokhin, Ivan"]
[WhiteFideId "1454153"]
[BlackFideId "24115720"]
[WhiteElo "2221"]
[BlackElo "2322"]
[Result "1-0"]
[Round "09"]
[TimeControl "180+2"]
[Date "2023.05.02"]
[WhiteClock "0:00:20"]
[BlackClock "0:00:02"]

1. e4 {[%clk 0:03:00]}  c5 {[%clk 0:02:53]} 2. Nc3 {[%clk 0:02:58]}  e6 {[%clk 0:02:54]} 3. Qe2 {[%clk 0:02:57]}  Nc6 {[%clk 0:02:53]} 4. d3 {[%clk 0:02:57]}  Nd4 {[%clk 0:02:52]} 5. Qd1 {[%clk 0:02:55]}  Ne7 {[%clk 0:02:51]} 6. Be3 {[%clk 0:02:54]}  Nec6 {[%clk 0:02:48]} 7. Nce2 {[%clk 0:02:51]}  d5 {[%clk 0:02:41]} 8. c3 {[%clk 0:02:47]}  Nxe2 {[%clk 0:02:41]} 9. Bxe2 {[%clk 0:02:48]}  d4 {[%clk 0:02:42]} 10. Bd2 {[%clk 0:02:47]}  g6 {[%clk 0:02:41]} 11. f4 {[%clk 0:02:47]}  Bg7 {[%clk 0:02:41]} 12. Nf3 {[%clk 0:02:47]}  Qb6 {[%clk 0:02:25]} 13. Qc1 {[%clk 0:02:37]}  c4 {[%clk 0:02:05]} 14. dxc4 {[%clk 0:02:33]}  O-O {[%clk 0:02:03]} 15. a3 {[%clk 0:02:13]}  Rd8 {[%clk 0:01:56]} 16. b4 {[%clk 0:02:11]}  d3 {[%clk 0:01:53]} 17. Bd1 {[%clk 0:01:58]}  e5 {[%clk 0:01:48]} 18. c5 {[%clk 0:01:56]}  Qc7 {[%clk 0:01:48]} 19. O-O {[%clk 0:01:56]}  f5 {[%clk 0:01:37]} 20. Bb3+ {[%clk 0:01:55]}  Kh8 {[%clk 0:01:37]} 21. Ng5 {[%clk 0:01:56]}  Rf8 {[%clk 0:01:35]} 22. Qe1 {[%clk 0:01:45]}  Qe7 {[%clk 0:01:09]} 23. Rf3 {[%clk 0:01:39]}  exf4 {[%clk 0:01:03]} 24. exf5 {[%clk 0:01:32]}  Qxg5 {[%clk 0:01:00]} 25. Bxf4 {[%clk 0:01:32]}  Qd8 {[%clk 0:00:34]} 26. fxg6 {[%clk 0:01:28]}  Bg4 {[%clk 0:00:34]} 27. Qg3 {[%clk 0:01:04]}  Bxf3 {[%clk 0:00:17]} 28. Qh3 {[%clk 0:01:04]}  h5 {[%clk 0:00:15]} 29. gxf3 {[%clk 0:01:04]}  h4 {[%clk 0:00:13]} 30. Qg4 {[%clk 0:01:02]}  Bd4+ {[%clk 0:00:08]} 31. Kh1 {[%clk 0:00:57]}  Kg7 {[%clk 0:00:08]} 32. Qh5 {[%clk 0:00:50]}  Rh8 {[%clk 0:00:07]} 33. Qf5 {[%clk 0:00:50]}  Qf6 {[%clk 0:00:05]} 34. Qd7+ {[%clk 0:00:49]}  Qe7 {[%clk 0:00:02]} 35. Qxe7+ {[%clk 0:00:47]}  Nxe7 {[%clk 0:00:02]} 36. cxd4 {[%clk 0:00:48]}  Nxg6 {[%clk 0:00:02]} 37. Rg1 {[%clk 0:00:48]}  Kf6 {[%clk 0:00:02]} 38. Bg5+ {[%clk 0:00:45]}  Kf5 {[%clk 0:00:03]} 39. Bc4 {[%clk 0:00:44]}  Nf4 {[%clk 0:00:02]} 40. Rg4 {[%clk 0:00:43]}  Ne2 {[%clk 0:00:01]} 41. Bxd3+ {[%clk 0:00:43]}  Ke6 {[%clk 0:00:02]} 42. Bxe2 {[%clk 0:00:41]}  Kd5 {[%clk 0:00:03]} 43. Bf6 {[%clk 0:00:38]}  Rhg8 {[%clk 0:00:03]} 44. Re4 {[%clk 0:00:37]}  Raf8 {[%clk 0:00:02]} 45. Be5 {[%clk 0:00:35]}  Rg5 {[%clk 0:00:02]} 46. Bd1 {[%clk 0:00:34]}  Kc6 {[%clk 0:00:01]} 47. Ba4+ {[%clk 0:00:34]}  b5 {[%clk 0:00:01]} 48. Bb3 {[%clk 0:00:32]}  Rxf3 {[%clk 0:00:01]} 49. d5+ {[%clk 0:00:29]}  Kb7 {[%clk 0:00:02]} 50. c6+ {[%clk 0:00:30]}  Ka6 {[%clk 0:00:02]} 51. Re1 {[%clk 0:00:19]}  Rxb3 {[%clk 0:00:03]} 52. c7 {[%clk 0:00:20]}  Rg8 {[%clk 0:00:02]} 53. d6 {[%clk 0:00:20]}  h3 {[%clk 0:00:03]} 54. d7 {[%clk 0:00:20]}  Rg5 {[%clk 0:00:02]} 55. c8=Q+ {[%clk 0:00:20]}  Kb6 {[%clk 0:00:02]} 56. d8=Q# {[%clk 0:00:20]} 1-0


[Site "https://www.chess.com"]

[Event "Titled Tuesday Blitz May 2 Early 2023"]
[White "Gracia Alvarez, Gerardo Antonio"]
[Black "Sousa, Andre Ventura"]
[WhiteFideId "5109124"]
[BlackFideId "1917617"]
[WhiteElo "2160"]
[BlackElo "2348"]
[Result "0-1"]
[Round "09"]
[TimeControl "180+2"]
[Date "2023.05.02"]
[WhiteClock "0:00:58"]
[BlackClock "0:01:58"]

1. e4 {[%clk 0:03:00]}  e5 {[%clk 0:02:56]} 2. Nc3 {[%clk 0:03:00]}  Nf6 {[%clk 0:02:54]} 3. d4 {[%clk 0:03:00]}  exd4 {[%clk 0:02:54]} 4. Qxd4 {[%clk 0:03:01]}  Nc6 {[%clk 0:02:54]} 5. Qd3 {[%clk 0:03:00]}  Bb4 {[%clk 0:02:55]} 6. Bd2 {[%clk 0:03:00]}  O-O {[%clk 0:02:54]} 7. O-O-O {[%clk 0:02:59]}  Re8 {[%clk 0:02:55]} 8. Nge2 {[%clk 0:03:00]}  d6 {[%clk 0:02:51]} 9. Bg5 {[%clk 0:03:00]}  h6 {[%clk 0:02:50]} 10. Bxf6 {[%clk 0:03:01]}  Qxf6 {[%clk 0:02:51]} 11. Nd5 {[%clk 0:03:01]}  Qd8 {[%clk 0:02:50]} 12. Nxb4 {[%clk 0:03:01]}  Nxb4 {[%clk 0:02:51]} 13. Qd2 {[%clk 0:03:01]}  a5 {[%clk 0:02:48]} 14. a3 {[%clk 0:03:01]}  Nc6 {[%clk 0:02:47]} 15. Nc3 {[%clk 0:03:01]}  Be6 {[%clk 0:02:44]} 16. f3 {[%clk 0:02:57]}  Ne5 {[%clk 0:02:42]} 17. Qd4 {[%clk 0:02:46]}  Qg5+ {[%clk 0:02:37]} 18. Kb1 {[%clk 0:02:45]}  Red8 {[%clk 0:02:34]} 19. h4 {[%clk 0:02:29]}  Qf6 {[%clk 0:02:28]} 20. Be2 {[%clk 0:02:12]}  c6 {[%clk 0:02:23]} 21. g4 {[%clk 0:02:09]}  b5 {[%clk 0:02:22]} 22. g5 {[%clk 0:02:09]}  hxg5 {[%clk 0:02:19]} 23. hxg5 {[%clk 0:02:08]}  Qf4 {[%clk 0:02:18]} 24. Na2 {[%clk 0:01:17]}  b4 {[%clk 0:02:10]} 25. a4 {[%clk 0:01:15]}  c5 {[%clk 0:02:10]} 26. Qf2 {[%clk 0:01:11]}  b3 {[%clk 0:02:05]} 27. Nc3 {[%clk 0:01:03]}  bxc2+ {[%clk 0:02:04]} 28. Kxc2 {[%clk 0:01:04]}  Rab8 {[%clk 0:02:02]} 29. Rdg1 {[%clk 0:01:00]}  Rxb2+ {[%clk 0:01:58]} 30. Kxb2 {[%clk 0:00:58]}  Qd2+ {[%clk 0:01:58]} 0-1


[Site "https://www.chess.com"]

[Event "Titled Tuesday Blitz May 2 Early 2023"]
[White "Gatterer, Florian"]
[Black "Erzhanov, Arman"]
[WhiteFideId "811688"]
[BlackFideId "4138821"]
[WhiteElo "2221"]
[BlackElo "2138"]
[Result "1/2-1/2"]
[Round "09"]
[TimeControl "180+2"]
[Date "2023.05.02"]
[WhiteClock "0:00:08"]
[BlackClock "0:01:43"]

1. e4 {[%clk 0:03:00]}  d6 {[%clk 0:02:59]} 2. d4 {[%clk 0:02:56]}  Nf6 {[%clk 0:02:59]} 3. Nc3 {[%clk 0:02:55]}  c6 {[%clk 0:02:59]} 4. f4 {[%clk 0:02:54]}  Qb6 {[%clk 0:03:00]} 5. e5 {[%clk 0:02:51]}  Nd5 {[%clk 0:03:00]} 6. Nxd5 {[%clk 0:02:51]}  cxd5 {[%clk 0:03:00]} 7. c3 {[%clk 0:02:48]}  Bf5 {[%clk 0:03:00]} 8. Qb3 {[%clk 0:02:43]}  e6 {[%clk 0:02:47]} 9. Be3 {[%clk 0:02:30]}  Nc6 {[%clk 0:02:44]} 10. Qxb6 {[%clk 0:02:25]}  axb6 {[%clk 0:02:44]} 11. Bb5 {[%clk 0:02:24]}  Kd7 {[%clk 0:02:37]} 12. Nf3 {[%clk 0:02:22]}  Be7 {[%clk 0:02:38]} 13. exd6 {[%clk 0:02:19]}  Bxd6 {[%clk 0:02:37]} 14. Ne5+ {[%clk 0:02:19]}  Bxe5 {[%clk 0:02:37]} 15. fxe5 {[%clk 0:02:18]}  Ra5 {[%clk 0:02:32]} 16. a4 {[%clk 0:02:01]}  Rha8 {[%clk 0:02:33]} 17. O-O {[%clk 0:01:59]}  Ke7 {[%clk 0:02:26]} 18. Bg5+ {[%clk 0:01:48]}  Ke8 {[%clk 0:02:18]} 19. Be3 {[%clk 0:01:42]}  Bc2 {[%clk 0:02:17]} 20. b3 {[%clk 0:00:59]}  Bxb3 {[%clk 0:02:09]} 21. Rfb1 {[%clk 0:00:58]}  Bxa4 {[%clk 0:02:06]} 22. Bxc6+ {[%clk 0:00:50]}  Bxc6 {[%clk 0:02:01]} 23. Rxa5 {[%clk 0:00:44]}  Rxa5 {[%clk 0:02:02]} 24. Rxb6 {[%clk 0:00:42]}  Ra3 {[%clk 0:02:00]} 25. Bd2 {[%clk 0:00:36]}  Ra2 {[%clk 0:02:00]} 26. Be1 {[%clk 0:00:33]}  Kd7 {[%clk 0:01:59]} 27. h3 {[%clk 0:00:31]}  Kc7 {[%clk 0:01:59]} 28. Rb4 {[%clk 0:00:31]}  Ba4 {[%clk 0:01:53]} 29. Rb1 {[%clk 0:00:16]}  Bc2 {[%clk 0:01:53]} 30. Rc1 {[%clk 0:00:15]}  Be4 {[%clk 0:01:54]} 31. Bf2 {[%clk 0:00:15]}  b5 {[%clk 0:01:49]} 32. h4 {[%clk 0:00:14]}  h5 {[%clk 0:01:48]} 33. Re1 {[%clk 0:00:12]}  Rc2 {[%clk 0:01:45]} 34. Ra1 {[%clk 0:00:09]}  Kb7 {[%clk 0:01:46]} 35. Ra3 {[%clk 0:00:09]}  Bd3 {[%clk 0:01:47]} 36. Be3 {[%clk 0:00:08]}  Be4 {[%clk 0:01:47]} 37. Bf2 {[%clk 0:00:08]}  Kb6 {[%clk 0:01:43]} 38. Kf1 {[%clk 0:00:08]}  Kb7 {[%clk 0:01:43]} 39. Kg1 {[%clk 0:00:08]} 1/2-1/2


[Site "https://www.chess.com"]

[Event "Titled Tuesday Blitz May 2 Early 2023"]
[White "Novikova, Galina"]
[Black "Shukhman, Anna"]
[WhiteFideId "4157095"]
[BlackFideId "54180058"]
[WhiteElo "1953"]
[BlackElo "2125"]
[Result "1-0"]
[Round "09"]
[TimeControl "180+2"]
[Date "2023.05.02"]
[WhiteClock "0:00:23"]
[BlackClock "0:00:52"]

1. e4 {[%clk 0:03:00]}  c5 {[%clk 0:02:59]} 2. Nf3 {[%clk 0:03:00]}  e6 {[%clk 0:02:59]} 3. b4 {[%clk 0:03:00]}  cxb4 {[%clk 0:02:52]} 4. a3 {[%clk 0:03:00]}  d5 {[%clk 0:02:51]} 5. e5 {[%clk 0:03:01]}  d4 {[%clk 0:02:47]} 6. axb4 {[%clk 0:03:00]}  Bxb4 {[%clk 0:02:45]} 7. Bd3 {[%clk 0:03:01]}  Nc6 {[%clk 0:02:45]} 8. c3 {[%clk 0:03:02]}  dxc3 {[%clk 0:02:44]} 9. dxc3 {[%clk 0:03:03]}  Bc5 {[%clk 0:02:44]} 10. O-O {[%clk 0:03:03]}  Nge7 {[%clk 0:02:43]} 11. Re1 {[%clk 0:03:01]}  h6 {[%clk 0:02:38]} 12. Qe2 {[%clk 0:02:59]}  b6 {[%clk 0:02:32]} 13. Na3 {[%clk 0:02:57]}  Bb7 {[%clk 0:02:30]} 14. Nb5 {[%clk 0:02:57]}  a6 {[%clk 0:02:26]} 15. Nd6+ {[%clk 0:02:58]}  Bxd6 {[%clk 0:02:25]} 16. exd6 {[%clk 0:02:59]}  Qxd6 {[%clk 0:02:26]} 17. Ba3 {[%clk 0:02:59]}  Qc7 {[%clk 0:02:23]} 18. Qe4 {[%clk 0:02:49]}  Rd8 {[%clk 0:02:13]} 19. Rad1 {[%clk 0:02:41]}  Na5 {[%clk 0:02:06]} 20. Qh4 {[%clk 0:02:27]}  Nd5 {[%clk 0:01:53]} 21. Qg4 {[%clk 0:02:14]}  g5 {[%clk 0:01:49]} 22. Rxe6+ {[%clk 0:02:07]}  Kd7 {[%clk 0:01:26]} 23. Rxb6+ {[%clk 0:01:41]}  Ke8 {[%clk 0:01:19]} 24. Re1+ {[%clk 0:01:19]}  Ne7 {[%clk 0:01:17]} 25. Rxe7+ {[%clk 0:01:18]}  Qxe7 {[%clk 0:01:17]} 26. Bxe7 {[%clk 0:01:19]}  Rxd3 {[%clk 0:01:14]} 27. h3 {[%clk 0:00:28]}  Rd1+ {[%clk 0:01:13]} 28. Kh2 {[%clk 0:00:28]}  Kxe7 {[%clk 0:01:12]} 29. Rxb7+ {[%clk 0:00:25]}  Nxb7 {[%clk 0:01:10]} 30. Qe4+ {[%clk 0:00:26]}  Kf6 {[%clk 0:01:10]} 31. Qxb7 {[%clk 0:00:25]}  Rhd8 {[%clk 0:00:56]} 32. Nd4 {[%clk 0:00:23]}  Rd6 {[%clk 0:00:50]} 33. Qf3+ {[%clk 0:00:21]}  Ke7 {[%clk 0:00:49]} 34. Qxd1 {[%clk 0:00:21]}  Kd7 {[%clk 0:00:48]} 35. Qa4+ {[%clk 0:00:21]}  Kc7 {[%clk 0:00:48]} 36. Qc4+ {[%clk 0:00:21]}  Kd8 {[%clk 0:00:47]} 37. Qxf7 {[%clk 0:00:21]}  a5 {[%clk 0:00:48]} 38. Ne6+ {[%clk 0:00:21]}  Rxe6 {[%clk 0:00:48]} 39. Qxe6 {[%clk 0:00:21]}  g4 {[%clk 0:00:49]} 40. hxg4 {[%clk 0:00:21]}  h5 {[%clk 0:00:50]} 41. g5 {[%clk 0:00:21]}  a4 {[%clk 0:00:50]} 42. g6 {[%clk 0:00:22]}  h4 {[%clk 0:00:51]} 43. g7 {[%clk 0:00:22]}  h3 {[%clk 0:00:51]} 44. g8=Q+ {[%clk 0:00:23]}  Kc7 {[%clk 0:00:52]} 45. Qgf7+ {[%clk 0:00:23]}  Kd8 {[%clk 0:00:52]} 46. Qee8# {[%clk 0:00:23]} 1-0


[Site "https://www.chess.com"]